bitfinex/quotes_SOLUSD_20230120
["timestamp","ask_amount","ask_price","bid_price","bid_amount"]
[1674220069334,10.0,21.417,21.402,20.0]
[1674220069545,17.96,21.416,21.402,20.0]
[1674220069871,10.0,21.415,21.402,20.0]
[1674220070192,17.96,21.414,21.399,29.17]
[1674220070402,10.0,21.413,21.397,63.16336252]
[1674220070617,17.96,21.412,21.397,18.97]
[1674220070819,53.0,21.412,21.393,18.63]
[1674220071028,53.0,21.412,21.392,27.88]
[1674220071240,10.0,21.411,21.392,27.88]
[1674220071449,17.0,21.41,21.392,27.88]
[1674220071670,0.96,21.409,21.392,27.88]
[1674220071883,0.96,21.409,21.393,10.0]
[1674220071884,10.96,21.409,21.393,10.0]
[1674220072105,10.96,21.409,21.394,16.39]
[1674220072295,17.0,21.41,21.396,10.0]
[1674220073776,17.0,21.41,21.397,20.0]
[1674220073982,108.3709,21.412,21.398,10.0]
[1674220074194,108.3709,21.412,21.4,10.0]
[1674220075552,10.0,21.411,21.399,20.0]
[1674220076095,17.96,21.41,21.399,20.0]
[1674220076301,17.0,21.411,21.399,20.0]
[1674220076496,108.3709,21.412,21.399,20.0]
[1674220076910,108.3709,21.412,21.4,10.0]
[1674220077876,10.0,21.411,21.4,10.0]
[1674220078084,10.0,21.411,21.399,20.0]
[1674220078297,10.0,21.411,21.398,20.0]
[1674220078516,10.0,21.409,21.398,20.0]
[1674220079013,17.96,21.408,21.398,20.0]
[1674220079226,10.0,21.409,21.396,30.0]
[1674220079971,10.0,21.411,21.396,30.0]
[1674220080925,143.4109,21.412,21.396,30.0]
[1674220081121,108.3709,21.412,21.398,10.0]
[1674220081333,108.3709,21.412,21.399,20.0]
[1674220081561,10.0,21.411,21.399,20.0]
[1674220081868,10.0,21.411,21.396,10.0]
[1674220082080,29.68,21.41,21.391,10.0]
[1674220082276,35.04,21.409,21.385,18.09]
[1674220082492,17.0,21.408,21.387,10.0]
[1674220082844,35.04,21.407,21.387,10.0]
[1674220083020,17.96,21.406,21.387,10.0]
[1674220083233,45.05,21.405,21.386,10.0]
[1674220083443,17.0,21.404,21.384,76.63]
[1674220083633,36.01,21.403,21.384,76.63]
[1674220083842,10.0,21.401,21.385,10.0]
[1674220084282,17.96,21.4,21.384,76.63]
[1674220084896,35.06,21.399,21.382,10.0]
[1674220085102,10.0,21.398,21.381,18.83]
[1674220085325,35.06,21.397,21.379,16.78]
[1674220085642,17.0,21.396,21.379,16.78]
[1674220085853,10.96,21.395,21.378,10.0]
[1674220086063,17.0,21.394,21.378,10.0]
[1674220086267,10.0,21.393,21.378,10.0]
[1674220086476,17.0,21.394,21.378,10.0]
[1674220086703,10.96,21.395,21.378,10.0]
[1674220087136,10.96,21.395,21.379,20.0]
[1674220087543,17.0,21.394,21.379,20.0]
[1674220087758,10.0,21.393,21.378,20.0]
[1674220089034,17.0,21.392,21.378,20.0]
[1674220089353,17.0,21.392,21.376,59.4736575]
[1674220089354,10.0,21.391,21.377,20.0]
[1674220089667,17.96,21.39,21.376,20.0]
[1674220089862,45.07,21.389,21.376,20.0]
[1674220090077,0.96,21.388,21.376,20.0]
[1674220090280,17.96,21.388,21.375,20.0]
[1674220090615,17.96,21.388,21.374,20.0]
[1674220091044,10.0,21.387,21.374,20.0]
[1674220092172,10.0,21.387,21.375,10.0]
[1674220092398,10.0,21.387,21.374,20.0]
[1674220092726,10.0,21.387,21.375,10.0]
[1674220093028,10.0,21.387,21.376,20.0]
[1674220093244,10.0,21.387,21.374,30.0]
[1674220093854,10.0,21.387,21.374,20.0]
[1674220094065,10.0,21.385,21.374,20.0]
[1674220094697,17.96,21.386,21.375,10.0]
[1674220094908,17.96,21.386,21.376,20.0]
[1674220095749,17.96,21.386,21.374,20.0]
[1674220095958,10.0,21.385,21.374,20.0]
[1674220096166,17.96,21.384,21.372,20.0]
[1674220097017,17.96,21.384,21.372,19.91280992]
[1674220097772,17.96,21.384,21.37,27.76]
[1674220098175,10.0,21.383,21.371,20.0]
[1674220098385,10.0,21.385,21.371,20.0]
[1674220098615,10.0,21.385,21.372,10.0]
[1674220098808,10.0,21.385,21.373,20.0]
[1674220099009,35.07,21.39,21.374,10.0]
[1674220099221,0.96,21.388,21.375,20.0]
[1674220099452,0.96,21.388,21.376,10.0]
[1674220099658,0.96,21.388,21.377,20.0]
[1674220100277,35.07,21.392,21.377,20.0]
[1674220100500,45.07,21.393,21.378,10.0]
[1674220100697,45.07,21.393,21.379,20.0]
[1674220101114,35.07,21.393,21.379,20.0]
[1674220101325,112.3037,21.394,21.379,20.0]
[1674220101326,35.05,21.401,21.38,63.52]
[1674220101556,143.8829,21.404,21.381,0.96]
[1674220101759,10.0,21.403,21.382,27.3]
[1674220101969,10.0,21.403,21.383,37.96]
[1674220102188,108.8329,21.404,21.384,18.48]
[1674220102408,108.8329,21.404,21.385,37.0]
[1674220102590,108.8329,21.404,21.386,20.18]
[1674220102793,108.8329,21.404,21.387,37.0]
[1674220103010,108.8329,21.404,21.388,10.0]
[1674220103336,10.0,21.403,21.389,20.0]
[1674220103755,10.0,21.403,21.39,10.0]
[1674220104167,108.8329,21.404,21.39,10.0]
[1674220104922,10.0,21.403,21.389,20.0]
[1674220105552,10.0,21.403,21.388,20.0]
[1674220106157,17.96,21.402,21.388,20.0]
[1674220106383,10.0,21.401,21.388,20.0]
[1674220106612,53.02,21.4,21.388,20.0]
[1674220106805,10.0,21.399,21.385,20.0]
[1674220107127,10.0,21.397,21.385,20.0]
[1674220107338,17.0,21.396,21.385,20.0]
[1674220109234,10.0,21.399,21.385,20.0]
[1674220109429,17.96,21.398,21.386,10.0]
[1674220109839,17.96,21.398,21.387,20.0]
[1674220110270,10.0,21.399,21.387,20.0]
[1674220111018,17.96,21.398,21.382,17.83]
[1674220111206,53.02,21.398,21.379,27.36]
[1674220111417,76.77576951,21.398,21.379,27.36]
[1674220111649,10.0,21.397,21.379,10.0]
[1674220111875,10.0,21.395,21.379,10.0]
[1674220112183,17.96,21.394,21.379,10.0]
[1674220112392,10.0,21.393,21.378,10.0]
[1674220112605,53.03,21.392,21.379,20.0]
[1674220112807,10.0,21.391,21.379,20.0]
[1674220113012,17.96,21.39,21.379,20.0]
[1674220113226,0.96,21.39,21.379,20.0]
[1674220113649,17.96,21.39,21.379,20.0]
[1674220114054,10.0,21.391,21.379,20.0]
[1674220114477,35.07,21.393,21.379,20.0]
[1674220114696,110.5295,21.394,21.381,10.0]
[1674220114916,110.5295,21.394,21.382,17.0]
[1674220115320,45.06,21.399,21.383,10.0]
[1674220115945,17.96,21.398,21.383,10.0]
[1674220116171,10.0,21.397,21.381,10.0]
[1674220116377,35.06,21.396,21.382,17.0]
[1674220116594,10.0,21.395,21.382,17.0]
[1674220117519,10.0,21.395,21.381,10.0]
[1674220118586,10.0,21.395,21.38,29.74]
[1674220118799,10.0,21.395,21.381,17.0]
[1674220119438,10.0,21.395,21.38,19.74]
[1674220119643,10.0,21.393,21.379,20.0]
[1674220119864,45.07,21.393,21.379,20.0]
[1674220120051,10.0,21.393,21.379,20.0]
[1674220120259,17.0,21.392,21.379,20.0]
[1674220120488,10.0,21.391,21.379,20.0]
[1674220120701,10.0,21.391,21.378,20.0]
[1674220121007,17.96,21.39,21.378,20.0]
[1674220122790,10.0,21.389,21.378,20.0]
[1674220123005,10.0,21.389,21.374,10.0]
[1674220123006,10.0,21.387,21.374,10.0]
[1674220123202,10.0,21.387,21.375,20.0]
[1674220123203,17.96,21.386,21.375,20.0]
[1674220123956,10.0,21.387,21.375,20.0]
[1674220124167,0.96,21.385,21.375,20.0]
[1674220124587,10.96,21.385,21.373,125.1751]
[1674220124797,10.96,21.385,21.373,115.1751]
[1674220124987,17.0,21.384,21.373,115.1751]
[1674220125731,0.96,21.385,21.374,10.0]
[1674220125936,17.96,21.386,21.37,19.87]
[1674220126266,10.0,21.385,21.369,10.0]
[1674220126480,10.0,21.383,21.369,10.0]
[1674220126795,17.0,21.382,21.369,10.0]
[1674220127203,35.08,21.386,21.37,16.32279182]
[1674220127420,45.08,21.387,21.371,27.0]
[1674220127621,45.08,21.387,21.371,10.0]
[1674220127622,0.96,21.386,21.371,10.0]
[1674220128988,17.96,21.386,21.371,10.0]
[1674220129627,10.0,21.385,21.371,10.0]
[1674220130038,17.96,21.384,21.371,10.0]
[1674220130682,0.96,21.384,21.371,10.0]
[1674220130892,10.0,21.385,21.371,10.0]
[1674220131648,35.08,21.387,21.371,10.0]
[1674220131823,17.96,21.386,21.371,10.0]
[1674220132259,10.0,21.385,21.371,10.0]
[1674220132667,0.96,21.384,21.371,10.0]
[1674220133435,0.96,21.384,21.369,93.53063656]
[1674220133736,17.96,21.384,21.367,25.61779182]
[1674220133937,45.08,21.383,21.368,20.0]
[1674220134150,10.0,21.381,21.368,20.0]
[1674220134568,10.0,21.379,21.367,20.0]
[1674220134776,17.96,21.378,21.361,7.345]
[1674220134985,10.0,21.377,21.353,6.994]
[1674220135313,10.0,21.377,21.358,41.0496906]
[1674220135519,0.96,21.376,21.363,10.0]
[1674220135728,35.09,21.38,21.363,10.0]
[1674220135955,35.09,21.382,21.363,26.32279182]
[1674220136143,36.05,21.38,21.364,17.96]
[1674220136666,10.0,21.379,21.364,17.0]
[1674220136883,0.96,21.378,21.363,10.0]
[1674220137286,17.96,21.378,21.363,10.0]
[1674220137517,10.0,21.377,21.363,10.0]
[1674220137716,17.0,21.376,21.363,10.0]
[1674220137928,0.96,21.375,21.363,10.0]
[1674220138464,10.0,21.379,21.363,15.113]
[1674220138781,17.96,21.378,21.363,10.0]
[1674220141186,146.5082,21.38,21.364,0.96]
[1674220141401,111.4182,21.38,21.365,10.0]
[1674220142145,10.96,21.379,21.365,10.0]
[1674220142354,10.96,21.379,21.363,10.0]
[1674220142566,17.0,21.378,21.363,10.0]
[1674220142969,0.96,21.377,21.363,10.0]
[1674220143391,10.96,21.377,21.363,10.0]
[1674220143598,17.0,21.376,21.363,10.0]
[1674220144036,0.96,21.375,21.363,10.0]
[1674220144351,17.0,21.378,21.363,10.0]
[1674220144566,0.96,21.377,21.363,10.0]
[1674220145806,0.96,21.377,21.363,19.283]
[1674220146012,0.96,21.377,21.363,10.0]
[1674220147504,10.96,21.377,21.362,86.0478]
[1674220147715,17.0,21.376,21.362,76.0478]
[1674220147936,10.0,21.375,21.362,76.0478]
[1674220148147,0.96,21.374,21.362,76.0478]
[1674220149930,0.96,21.374,21.361,6.063]
[1674220150136,17.96,21.374,21.358,3.305]
[1674220150342,10.0,21.373,21.357,22.247]
[1674220150564,73.06,21.372,21.354,2.247]
[1674220150879,10.0,21.371,21.352,12.403]
[1674220151090,53.06,21.37,21.352,12.403]
[1674220151274,10.0,21.369,21.352,12.403]
[1674220151487,17.96,21.368,21.352,12.403]
[1674220152032,10.0,21.367,21.352,12.403]
[1674220152222,0.96,21.366,21.352,2.403]
[1674220152434,0.96,21.366,21.353,10.0]
[1674220152749,10.0,21.369,21.353,10.0]
[1674220152954,10.0,21.369,21.355,10.0]
[1674220153488,10.0,21.367,21.353,10.0]
[1674220153812,10.0,21.367,21.352,2.403]
[1674220154027,10.0,21.367,21.351,87.8222]
[1674220154028,17.96,21.366,21.351,92.5172]
[1674220154218,10.0,21.365,21.351,92.5172]
[1674220154639,0.96,21.364,21.352,10.0]
[1674220157170,10.0,21.365,21.352,10.0]
[1674220158023,17.0,21.366,21.352,10.0]
[1674220158234,0.96,21.365,21.352,10.0]
[1674220158546,187.78,21.389,21.352,10.0]
[1674220158547,35.1,21.37,21.353,17.0]
[1674220158857,116.7152,21.371,21.354,62.5936575]
[1674220159073,116.7152,21.371,21.356,10.0]
[1674220159277,116.7152,21.371,21.358,10.0]
[1674220159697,116.7152,21.371,21.36,10.0]
[1674220160108,116.7152,21.371,21.36,29.83]
[1674220163064,116.7152,21.371,21.36,75.1737249]
[1674220163477,35.09,21.38,21.361,16.79]
[1674220163805,145.3757,21.382,21.362,81.66651672]
[1674220163998,110.2857,21.382,21.37,19.87]
[1674220164329,35.08,21.386,21.371,10.0]
[1674220164530,35.07,21.391,21.371,10.0]
[1674220164939,10.0,21.39,21.371,10.0]
[1674220165145,10.0,21.388,21.371,10.0]
[1674220165355,45.08,21.387,21.371,10.0]
[1674220165792,45.08,21.387,21.37,65.2137249]
[1674220166002,45.08,21.387,21.37,19.87]
[1674220166215,10.0,21.385,21.37,19.87]
[1674220166422,17.96,21.384,21.371,10.0]
[1674220166636,10.0,21.385,21.371,10.0]
[1674220167248,10.0,21.385,21.37,19.87]
[1674220167460,0.96,21.384,21.37,19.87]
[1674220168311,35.08,21.383,21.37,19.87]
[1674220168509,10.0,21.381,21.366,10.0]
[1674220168720,10.0,21.381,21.367,20.0]
[1674220169183,0.96,21.38,21.367,20.0]
[1674220169990,17.96,21.38,21.367,20.0]
[1674220170205,10.0,21.378,21.364,20.0]
[1674220170956,0.96,21.377,21.364,20.0]
[1674220171580,10.0,21.376,21.364,20.0]
[1674220171983,0.96,21.375,21.364,20.0]
[1674220172195,0.96,21.375,21.363,45.3437249]
[1674220172399,53.06,21.375,21.362,114.9837]
[1674220172611,53.06,21.375,21.358,44.20472768]
[1674220172848,10.0,21.374,21.358,44.20472768]
[1674220173070,17.96,21.373,21.358,44.20472768]
[1674220173489,10.0,21.372,21.358,44.20472768]
[1674220173806,10.0,21.372,21.359,10.0]
[1674220174015,17.0,21.371,21.358,54.20472768]
[1674220174217,10.0,21.372,21.359,10.0]
[1674220179589,17.96,21.371,21.358,44.20472768]
[1674220179783,17.96,21.371,21.359,20.0]
[1674220179998,10.0,21.37,21.359,20.0]
[1674220180210,17.96,21.369,21.358,20.0]
[1674220181377,35.1,21.371,21.359,10.0]
[1674220181593,117.1767,21.377,21.359,10.0]
[1674220181594,10.0,21.372,21.359,10.0]
[1674220181781,0.96,21.371,21.359,10.0]
[1674220182629,10.0,21.372,21.359,10.0]
[1674220183255,35.1,21.375,21.359,10.0]
[1674220183454,17.96,21.373,21.359,10.0]
[1674220184748,0.96,21.373,21.359,10.0]
[1674220186003,35.1,21.375,21.361,10.0]
[1674220186213,117.1767,21.377,21.361,16.456]
[1674220186543,117.1767,21.377,21.361,10.0]
[1674220187044,117.1767,21.377,21.362,26.422]
[1674220187249,117.1767,21.377,21.363,20.0]
[1674220187459,35.08,21.384,21.365,10.0]
[1674220187671,152.177,21.384,21.366,37.0]
[1674220187880,152.177,21.384,21.367,10.0]
[1674220188092,152.177,21.384,21.368,37.0]
[1674220188300,152.177,21.384,21.368,20.0]
[1674220189477,10.0,21.381,21.368,20.0]
[1674220192097,0.96,21.38,21.368,20.0]
[1674220192933,10.0,21.381,21.368,20.0]
[1674220193682,117.097,21.384,21.37,19.83]
[1674220193894,117.097,21.384,21.371,10.0]
[1674220194080,117.097,21.384,21.371,17.669]
[1674220195571,117.097,21.384,21.371,7.669]
[1674220195776,27.96,21.383,21.37,19.83]
[1674220195988,27.96,21.383,21.369,10.0]
[1674220196190,27.96,21.383,21.368,20.0]
[1674220198105,35.09,21.382,21.368,20.0]
[1674220198298,10.0,21.38,21.366,20.0]
[1674220198498,17.96,21.379,21.366,20.0]
[1674220200309,45.08,21.383,21.366,20.0]
[1674220200512,10.0,21.383,21.367,17.0]
[1674220200737,10.0,21.383,21.369,10.0]
[1674220200923,230.4873,21.384,21.369,10.0]
[1674220201137,230.4873,21.384,21.37,36.87]
[1674220201461,230.4873,21.384,21.371,10.0]
[1674220202599,35.07,21.393,21.372,17.96]
[1674220202830,35.07,21.393,21.374,10.0]
[1674220203147,45.07,21.394,21.375,58.94]
[1674220203358,45.07,21.394,21.376,10.0]
[1674220203570,45.07,21.394,21.377,17.0]
[1674220203796,45.07,21.394,21.378,20.0]
[1674220206283,10.0,21.394,21.378,20.0]
[1674220206513,45.07,21.394,21.378,20.0]
[1674220207026,45.07,21.394,21.374,20.0]
[1674220207442,10.0,21.392,21.374,20.0]
[1674220207660,53.03,21.391,21.374,20.0]
[1674220207858,10.0,21.39,21.374,20.0]
[1674220208075,53.03,21.389,21.374,20.0]
[1674220208304,10.0,21.388,21.374,20.0]
[1674220208488,17.96,21.387,21.374,20.0]
[1674220208697,10.0,21.386,21.374,20.0]
[1674220216508,0.96,21.385,21.374,20.0]
[1674220216720,17.96,21.385,21.373,117.2215]
[1674220216938,35.08,21.384,21.368,10.0]
[1674220217123,10.0,21.382,21.368,10.0]
[1674220217334,17.96,21.381,21.368,10.0]
[1674220217757,17.96,21.381,21.365,25.13]
[1674220217968,53.05,21.381,21.365,10.0]
[1674220218290,10.0,21.38,21.366,20.0]
[1674220218724,0.96,21.379,21.363,24.8]
[1674220218911,35.09,21.378,21.362,117.3387]
[1674220219250,10.0,21.376,21.362,117.3387]
[1674220219431,36.06,21.375,21.362,117.3387]
[1674220219644,10.0,21.373,21.362,117.3387]
[1674220220274,10.0,21.373,21.357,10.0]
[1674220220484,17.96,21.372,21.357,10.0]
[1674220220804,10.0,21.371,21.357,10.0]
[1674220221137,17.96,21.37,21.357,10.0]
[1674220221780,0.96,21.37,21.357,10.0]
[1674220221977,17.96,21.371,21.357,10.0]
[1674220222802,35.1,21.372,21.358,20.0]
[1674220223016,35.1,21.375,21.359,17.0]
[1674220223441,45.1,21.376,21.36,10.96]
[1674220223652,45.1,21.376,21.36,10.0]
[1674220224275,10.0,21.376,21.361,17.0]
[1674220224486,10.0,21.376,21.362,10.0]
[1674220225876,119.7927,21.377,21.362,10.0]
[1674220226063,0.96,21.376,21.362,10.0]
[1674220226489,10.96,21.376,21.362,10.0]
[1674220227018,46.06,21.376,21.362,10.0]
[1674220227648,46.06,21.376,21.36,10.0]
[1674220228162,10.0,21.374,21.36,10.0]
[1674220228372,17.96,21.373,21.36,10.0]
[1674220228816,17.96,21.373,21.358,20.0]
[1674220229005,45.1,21.372,21.358,20.0]
[1674220229217,10.0,21.372,21.358,20.0]
[1674220229431,0.96,21.371,21.358,20.0]
[1674220229759,35.1,21.373,21.359,10.0]
[1674220229952,35.1,21.375,21.359,27.0]
[1674220230283,0.96,21.374,21.359,27.0]
[1674220230472,17.0,21.375,21.359,27.0]
[1674220230906,0.96,21.374,21.359,27.0]
[1674220231853,10.96,21.374,21.359,10.0]
[1674220232070,17.0,21.373,21.359,10.0]
[1674220232256,17.0,21.373,21.358,30.0]
[1674220232468,10.96,21.372,21.358,20.0]
[1674220233224,10.0,21.37,21.357,20.0]
[1674220233429,10.0,21.37,21.356,20.0]
[1674220233642,17.96,21.369,21.356,20.0]
[1674220234057,10.0,21.368,21.356,20.0]
[1674220234259,0.96,21.367,21.356,20.0]
[1674220234678,17.0,21.369,21.356,20.0]
[1674220234893,0.96,21.368,21.357,10.0]
[1674220235101,0.96,21.368,21.358,20.0]
[1674220236689,10.0,21.37,21.358,20.0]
[1674220236908,0.96,21.369,21.358,20.0]
[1674220237107,0.96,21.369,21.356,20.0]
[1674220237319,0.96,21.369,21.352,54.3767249]
[1674220237534,0.96,21.369,21.35,6.322]
[1674220237535,58.86576951,21.368,21.35,6.322]
[1674220237762,35.11,21.368,21.349,10.0]
[1674220237969,17.0,21.367,21.349,10.0]
[1674220238162,10.0,21.366,21.349,10.0]
[1674220238373,10.0,21.364,21.346,4.998]
[1674220238578,17.96,21.363,21.346,4.998]
[1674220238793,10.0,21.362,21.346,20.0]
[1674220239029,17.96,21.361,21.346,20.0]
[1674220239218,10.0,21.36,21.346,20.0]
[1674220239538,17.96,21.359,21.346,20.0]
[1674220239754,17.96,21.359,21.34,99.1045]
[1674220239755,17.96,21.359,21.341,4.049]
[1674220239947,35.12,21.358,21.34,79.1945]
[1674220240362,27.96,21.357,21.34,79.1945]
[1674220240571,35.13,21.356,21.34,79.1945]
[1674220240793,17.0,21.355,21.34,79.1945]
[1674220241022,10.96,21.354,21.341,10.0]
[1674220242068,0.96,21.354,21.341,10.0]
[1674220243414,10.0,21.357,21.341,10.0]
[1674220243629,10.0,21.357,21.343,10.0]
[1674220244174,35.12,21.361,21.344,37.0]
[1674220244484,118.5236,21.365,21.345,10.96]
[1674220244699,118.5236,21.365,21.346,21.553]
[1674220244894,118.5236,21.365,21.347,17.96]
[1674220245098,118.5236,21.365,21.349,10.0]
[1674220245620,17.96,21.364,21.349,10.0]
[1674220248494,10.0,21.363,21.349,10.0]
[1674220249111,17.96,21.362,21.347,22.69]
[1674220249321,10.0,21.361,21.349,20.0]
[1674220249525,17.96,21.36,21.349,20.0]
[1674220249751,35.12,21.359,21.349,20.0]
[1674220249971,17.0,21.358,21.346,20.0]
[1674220250177,10.0,21.357,21.343,10.0]
[1674220250371,17.96,21.356,21.344,20.0]
[1674220250920,10.0,21.355,21.344,20.0]
[1674220251124,0.96,21.354,21.342,20.0]
[1674220251339,0.96,21.354,21.343,10.0]
[1674220251552,0.96,21.354,21.344,20.0]
[1674220251860,17.0,21.356,21.344,20.0]
[1674220252088,10.0,21.357,21.344,20.0]
[1674220252294,0.96,21.356,21.344,20.0]
[1674220252599,17.96,21.356,21.344,20.0]
[1674220253944,10.0,21.359,21.344,20.0]
[1674220255422,10.0,21.357,21.344,20.0]
[1674220255635,17.0,21.356,21.344,20.0]
[1674220256070,0.96,21.355,21.344,20.0]
[1674220256266,10.96,21.355,21.344,20.0]
[1674220256477,0.96,21.355,21.344,20.0]
[1674220256686,10.0,21.357,21.344,10.0]
[1674220256905,10.0,21.357,21.345,20.0]
[1674220258150,0.96,21.356,21.345,20.0]
[1674220258587,0.96,21.356,21.341,18.484]
[1674220258588,17.96,21.356,21.341,8.484]
[1674220258800,10.0,21.354,21.34,79.1945]
[1674220259015,17.0,21.353,21.34,79.1945]
[1674220259200,10.0,21.352,21.34,79.1945]
[1674220259412,17.96,21.351,21.34,79.1945]
[1674220264064,10.0,21.35,21.34,79.1945]
[1674220264568,10.0,21.348,21.337,7.959]
[1674220264782,0.96,21.347,21.338,20.0]
[1674220265188,0.89498994,21.347,21.338,20.0]
[1674220265406,17.89498994,21.347,21.331,1.181]
[1674220265614,35.14,21.346,21.331,1.181]
[1674220266047,10.0,21.348,21.331,11.181]
[1674220266682,10.0,21.348,21.331,2.994]
[1674220266875,10.0,21.346,21.33,10.0]
[1674220267087,17.0,21.345,21.33,10.0]
[1674220267629,0.96,21.344,21.33,10.0]
[1674220267823,0.96,21.344,21.33,30.70526506]
[1674220268148,0.96,21.346,21.331,17.0]
[1674220268356,0.96,21.346,21.332,10.0]
[1674220268779,10.0,21.35,21.334,10.0]
[1674220268971,17.96,21.349,21.335,20.0]
[1674220269182,17.96,21.349,21.336,10.0]
[1674220269623,17.96,21.349,21.337,20.0]
[1674220269834,0.96,21.349,21.338,10.0]
[1674220270359,10.0,21.35,21.339,20.0]
[1674220271398,35.12,21.358,21.339,20.0]
[1674220271617,35.12,21.358,21.34,17.0]
[1674220271828,10.0,21.355,21.341,10.0]
[1674220272015,10.0,21.355,21.34,2.345]
[1674220272230,10.0,21.355,21.339,22.345]
[1674220272436,10.0,21.355,21.339,20.0]
[1674220272665,58.88576951,21.354,21.337,20.0]
[1674220272879,10.0,21.353,21.337,20.0]
[1674220273091,53.09,21.352,21.337,20.0]
[1674220273298,10.0,21.351,21.337,20.0]
[1674220273504,17.96,21.35,21.337,20.0]
[1674220273714,10.0,21.349,21.336,20.0]
[1674220273930,17.0,21.348,21.336,20.0]
[1674220274128,0.96,21.347,21.336,20.0]
[1674220274542,0.96,21.348,21.335,10.0]
[1674220274966,17.96,21.348,21.335,10.0]
[1674220278253,17.96,21.348,21.334,10.0]
[1674220278436,10.0,21.347,21.334,10.0]
[1674220279091,0.96,21.346,21.333,10.0]
[1674220279292,0.96,21.346,21.331,4.035]
[1674220279504,17.96,21.346,21.331,4.035]
[1674220279696,17.96,21.346,21.33,4.454]
[1674220280038,45.15,21.345,21.329,79.213]
[1674220280539,17.96,21.344,21.329,79.213]
[1674220280967,10.0,21.343,21.329,79.213]
[1674220281177,17.0,21.342,21.329,79.213]
[1674220281388,0.96,21.341,21.329,79.213]
[1674220281814,10.96,21.341,21.329,79.213]
[1674220282020,17.0,21.34,21.329,79.213]
[1674220282431,0.96,21.339,21.329,79.213]
[1674220283167,35.14,21.346,21.329,79.213]